[Event "Titled Tuesday Blitz August 15 Early 2023"]
[White "Souleidis, Georgios"]
[Black "KorolDimitriy75"]
[WhiteFideId "4206827"]
[WhiteElo "2561"]
[BlackElo "2418"]
[Result "0-1"]
[Round "5"]
[TimeControl "180+1"]
[Date "2023.08.15"]
[WhiteClock "0:00:00"]
[BlackClock "0:00:09"]
[Board "106"]

1. e4 {[%clk 0:03:00]}  c5 {[%clk 0:03:00]} 2. Be2 {[%clk 0:03:00]}  g6 {[%clk 0:02:59]} 3. d3 {[%clk 0:03:00]}  Bg7 {[%clk 0:02:59]} 4. f4 {[%clk 0:03:01]}  Nc6 {[%clk 0:02:59]} 5. Nf3 {[%clk 0:03:02]}  d6 {[%clk 0:02:59]} 6. O-O {[%clk 0:03:02]}  e5 {[%clk 0:02:58]} 7. fxe5 {[%clk 0:02:57]}  dxe5 {[%clk 0:02:57]} 8. c3 {[%clk 0:02:48]}  Nge7 {[%clk 0:02:56]} 9. Be3 {[%clk 0:02:45]}  b6 {[%clk 0:02:40]} 10. Qe1 {[%clk 0:02:45]}  h6 {[%clk 0:02:01]} 11. Qh4 {[%clk 0:02:31]}  Be6 {[%clk 0:02:00]} 12. Nbd2 {[%clk 0:02:22]}  Qd7 {[%clk 0:02:00]} 13. Nc4 {[%clk 0:02:09]}  f5 {[%clk 0:00:53]} 14. Kh1 {[%clk 0:01:43]}  f4 {[%clk 0:00:38]} 15. Bg1 {[%clk 0:01:43]}  O-O-O {[%clk 0:00:37]} 16. b4 {[%clk 0:01:03]}  g5 {[%clk 0:00:37]} 17. Qe1 {[%clk 0:00:59]}  g4 {[%clk 0:00:37]} 18. Nh4 {[%clk 0:00:53]}  cxb4 {[%clk 0:00:35]} 19. Bxb6 {[%clk 0:00:44]}  Rdf8 {[%clk 0:00:22]} 20. Bc5 {[%clk 0:00:39]}  Bf6 {[%clk 0:00:21]} 21. cxb4 {[%clk 0:00:26]}  Kb8 {[%clk 0:00:19]} 22. b5 {[%clk 0:00:12]}  Nd4 {[%clk 0:00:19]} 23. Bxe7 {[%clk 0:00:06]}  Bxe7 {[%clk 0:00:18]} 24. Ng6 {[%clk 0:00:06]}  Bf6 {[%clk 0:00:16]} 25. Nxh8 {[%clk 0:00:06]}  Rxh8 {[%clk 0:00:16]} 26. b6 {[%clk 0:00:06]}  a6 {[%clk 0:00:14]} 27. Qa5 {[%clk 0:00:05]}  Nxe2 {[%clk 0:00:10]} 28. Qxa6 {[%clk 0:00:00]}  g3 {[%clk 0:00:09]} 0-1


[Site "https://www.chess.com"]

[Event "Titled Tuesday Blitz August 15 Early 2023"]
[White "Kozelov, Roman"]
[Black "Mogirzan, Matei-Valeriu"]
[WhiteFideId "14133377"]
[BlackFideId "1257455"]
[WhiteElo "2390"]
[BlackElo "2542"]
[Result "1-0"]
[Round "5"]
[TimeControl "180+1"]
[Date "2023.08.15"]
[WhiteClock "0:00:56"]
[BlackClock "0:00:00"]
[Board "111"]

1. e4 {[%clk 0:02:55]}  e5 {[%clk 0:02:59]} 2. Nf3 {[%clk 0:02:55]}  Nf6 {[%clk 0:02:59]} 3. d4 {[%clk 0:02:54]}  Nxe4 {[%clk 0:03:00]} 4. Bd3 {[%clk 0:02:54]}  d5 {[%clk 0:02:59]} 5. dxe5 {[%clk 0:02:54]}  f5 {[%clk 0:02:58]} 6. exf6 {[%clk 0:02:53]}  Nxf6 {[%clk 0:02:56]} 7. O-O {[%clk 0:02:53]}  Be7 {[%clk 0:02:56]} 8. Nc3 {[%clk 0:02:48]}  O-O {[%clk 0:02:54]} 9. Bg5 {[%clk 0:02:47]}  c6 {[%clk 0:02:52]} 10. Qd2 {[%clk 0:02:44]}  Nbd7 {[%clk 0:02:37]} 11. Rae1 {[%clk 0:02:42]}  Nc5 {[%clk 0:02:27]} 12. Ne5 {[%clk 0:02:28]}  Bd6 {[%clk 0:02:11]} 13. b4 {[%clk 0:02:13]}  Nxd3 {[%clk 0:02:00]} 14. Nxd3 {[%clk 0:02:09]}  Qc7 {[%clk 0:01:52]} 15. h3 {[%clk 0:02:06]}  Bf5 {[%clk 0:01:47]} 16. a3 {[%clk 0:02:03]}  d4 {[%clk 0:01:31]} 17. Bxf6 {[%clk 0:02:00]}  Rxf6 {[%clk 0:01:29]} 18. Ne4 {[%clk 0:02:00]}  Bxe4 {[%clk 0:01:19]} 19. Rxe4 {[%clk 0:02:00]}  Qd7 {[%clk 0:01:20]} 20. Rfe1 {[%clk 0:01:56]}  Raf8 {[%clk 0:01:17]} 21. Qg5 {[%clk 0:01:50]}  Rg6 {[%clk 0:01:12]} 22. Qh4 {[%clk 0:01:50]}  Qf7 {[%clk 0:00:49]} 23. Rxd4 {[%clk 0:01:43]}  Qf3 {[%clk 0:00:26]} 24. Rg4 {[%clk 0:01:36]}  Rxg4 {[%clk 0:00:18]} 25. Qxg4 {[%clk 0:01:35]}  Qxg4 {[%clk 0:00:16]} 26. hxg4 {[%clk 0:01:36]}  Kf7 {[%clk 0:00:17]} 27. f3 {[%clk 0:01:27]}  a5 {[%clk 0:00:16]} 28. Kf2 {[%clk 0:01:26]}  Ra8 {[%clk 0:00:13]} 29. Re4 {[%clk 0:01:13]}  axb4 {[%clk 0:00:11]} 30. axb4 {[%clk 0:01:14]}  Ra2 {[%clk 0:00:11]} 31. Rc4 {[%clk 0:01:14]}  Ke6 {[%clk 0:00:10]} 32. Ke3 {[%clk 0:01:12]}  Bc7 {[%clk 0:00:04]} 33. f4 {[%clk 0:01:11]}  Bb6+ {[%clk 0:00:04]} 34. Ke4 {[%clk 0:01:11]}  g6 {[%clk 0:00:03]} 35. f5+ {[%clk 0:01:11]}  gxf5+ {[%clk 0:00:04]} 36. gxf5+ {[%clk 0:01:11]}  Kf6 {[%clk 0:00:05]} 37. Ne5 {[%clk 0:01:05]}  Bc7 {[%clk 0:00:04]} 38. Nd7+ {[%clk 0:01:03]}  Ke7 {[%clk 0:00:04]} 39. Nc5 {[%clk 0:01:03]}  b5 {[%clk 0:00:03]} 40. Rc3 {[%clk 0:01:02]}  Rb2 {[%clk 0:00:03]} 41. Nd3 {[%clk 0:01:02]}  Rb1 {[%clk 0:00:04]} 42. Rxc6 {[%clk 0:01:01]}  Rg1 {[%clk 0:00:02]} 43. Rxc7+ {[%clk 0:01:01]}  Kd6 {[%clk 0:00:02]} 44. Rxh7 {[%clk 0:01:01]}  Rxg2 {[%clk 0:00:03]} 45. Rh6+ {[%clk 0:01:01]}  Ke7 {[%clk 0:00:04]} 46. c3 {[%clk 0:01:01]}  Rg4+ {[%clk 0:00:03]} 47. Nf4 {[%clk 0:01:00]}  Rg3 {[%clk 0:00:03]} 48. Ke5 {[%clk 0:01:00]}  Kf7 {[%clk 0:00:03]} 49. Nd5 {[%clk 0:00:59]}  Rg1 {[%clk 0:00:01]} 50. Rh7+ {[%clk 0:01:00]}  Kg8 {[%clk 0:00:01]} 51. Rb7 {[%clk 0:01:00]}  Kf8 {[%clk 0:00:02]} 52. Kf6 {[%clk 0:00:59]}  Kg8 {[%clk 0:00:01]} 53. Rxb5 {[%clk 0:00:57]}  Kh7 {[%clk 0:00:02]} 54. Rb7+ {[%clk 0:00:57]}  Kh6 {[%clk 0:00:02]} 55. c4 {[%clk 0:00:57]}  Rg6+ {[%clk 0:00:00]} 56. fxg6 {[%clk 0:00:56]} 1-0


[Site "https://www.chess.com"]

[Event "Titled Tuesday Blitz August 15 Early 2023"]
[White "Gontcharov, Vladislav"]
[Black "Efremov, Vladislav"]
[WhiteFideId "4123492"]
[BlackFideId "44159935"]
[WhiteElo "2535"]
[BlackElo "2373"]
[Result "1-0"]
[Round "5"]
[TimeControl "180+1"]
[Date "2023.08.15"]
[WhiteClock "0:00:38"]
[BlackClock "0:00:19"]
[Board "115"]

1. d4 {[%clk 0:03:00]}  Nf6 {[%clk 0:03:00]} 2. c4 {[%clk 0:02:59]}  g6 {[%clk 0:03:00]} 3. Nc3 {[%clk 0:02:58]}  Bg7 {[%clk 0:03:00]} 4. Nf3 {[%clk 0:02:57]}  O-O {[%clk 0:03:00]} 5. Bg5 {[%clk 0:02:57]}  d6 {[%clk 0:02:58]} 6. e3 {[%clk 0:02:57]}  c5 {[%clk 0:02:56]} 7. Be2 {[%clk 0:02:54]}  Nc6 {[%clk 0:02:54]} 8. O-O {[%clk 0:02:50]}  Bf5 {[%clk 0:02:51]} 9. d5 {[%clk 0:02:43]}  Na5 {[%clk 0:02:51]} 10. Nd2 {[%clk 0:02:43]}  h6 {[%clk 0:02:48]} 11. Bh4 {[%clk 0:02:39]}  b6 {[%clk 0:02:45]} 12. e4 {[%clk 0:02:32]}  Bd7 {[%clk 0:02:36]} 13. f4 {[%clk 0:02:31]}  Qc7 {[%clk 0:02:31]} 14. Rc1 {[%clk 0:02:20]}  e6 {[%clk 0:02:26]} 15. Bg3 {[%clk 0:02:07]}  exd5 {[%clk 0:02:19]} 16. e5 {[%clk 0:02:05]}  Nh7 {[%clk 0:01:43]} 17. Nxd5 {[%clk 0:02:04]}  Qb8 {[%clk 0:01:35]} 18. exd6 {[%clk 0:01:56]}  Qxd6 {[%clk 0:01:36]} 19. f5 {[%clk 0:01:35]}  Bd4+ {[%clk 0:01:33]} 20. Kh1 {[%clk 0:01:35]}  Be5 {[%clk 0:01:16]} 21. Ne4 {[%clk 0:01:31]}  Qb8 {[%clk 0:01:15]} 22. Ne7+ {[%clk 0:01:25]}  Kh8 {[%clk 0:01:15]} 23. Qxd7 {[%clk 0:01:25]}  Bxg3 {[%clk 0:01:07]} 24. Nxg3 {[%clk 0:01:12]}  Nf6 {[%clk 0:00:58]} 25. Qd2 {[%clk 0:01:02]}  Kg7 {[%clk 0:00:52]} 26. fxg6 {[%clk 0:00:55]}  fxg6 {[%clk 0:00:53]} 27. Bf3 {[%clk 0:00:48]}  Rd8 {[%clk 0:00:45]} 28. Qc2 {[%clk 0:00:46]}  Kf7 {[%clk 0:00:28]} 29. Qxg6+ {[%clk 0:00:44]}  Kxe7 {[%clk 0:00:28]} 30. Rfe1+ {[%clk 0:00:43]}  Kd7 {[%clk 0:00:25]} 31. Qxf6 {[%clk 0:00:43]}  Re8 {[%clk 0:00:25]} 32. Rcd1+ {[%clk 0:00:39]}  Kc7 {[%clk 0:00:19]} 33. Qf7+ {[%clk 0:00:38]} 1-0


[Site "https://www.chess.com"]

[Event "Titled Tuesday Blitz August 15 Early 2023"]
[White "Ansh M Shah"]
[Black "Davidson, Kevin"]
[WhiteFideId "25033379"]
[BlackFideId "2056810"]
[WhiteElo "2522"]
[BlackElo "2350"]
[Result "1-0"]
[Round "5"]
[TimeControl "180+1"]
[Date "2023.08.15"]
[WhiteClock "0:00:32"]
[BlackClock "0:00:00"]
[Board "119"]

1. d4 {[%clk 0:02:55]}  Nf6 {[%clk 0:02:59]} 2. c4 {[%clk 0:02:52]}  g6 {[%clk 0:02:59]} 3. Nc3 {[%clk 0:02:50]}  Bg7 {[%clk 0:02:59]} 4. e4 {[%clk 0:02:51]}  d6 {[%clk 0:03:00]} 5. Be2 {[%clk 0:02:51]}  O-O {[%clk 0:02:59]} 6. h4 {[%clk 0:02:52]}  c5 {[%clk 0:02:59]} 7. d5 {[%clk 0:02:52]}  e6 {[%clk 0:02:58]} 8. h5 {[%clk 0:02:52]}  exd5 {[%clk 0:02:58]} 9. exd5 {[%clk 0:02:53]}  Re8 {[%clk 0:02:57]} 10. Kf1 {[%clk 0:02:53]}  Ne4 {[%clk 0:02:53]} 11. Nxe4 {[%clk 0:02:49]}  Rxe4 {[%clk 0:02:54]} 12. hxg6 {[%clk 0:02:49]}  hxg6 {[%clk 0:02:52]} 13. Nf3 {[%clk 0:02:47]}  Bg4 {[%clk 0:02:48]} 14. Bd3 {[%clk 0:02:46]}  Re8 {[%clk 0:02:38]} 15. Bf4 {[%clk 0:02:39]}  Qf6 {[%clk 0:02:19]} 16. Bh6 {[%clk 0:02:15]}  Bxh6 {[%clk 0:01:42]} 17. Rxh6 {[%clk 0:02:16]}  Kg7 {[%clk 0:01:42]} 18. Rh1 {[%clk 0:02:04]}  Nd7 {[%clk 0:01:37]} 19. Qd2 {[%clk 0:01:55]}  Rh8 {[%clk 0:01:37]} 20. Rxh8 {[%clk 0:01:35]}  Rxh8 {[%clk 0:01:38]} 21. Ng1 {[%clk 0:01:13]}  Ne5 {[%clk 0:01:25]} 22. Be2 {[%clk 0:01:13]}  Rh1 {[%clk 0:01:05]} 23. Qc3 {[%clk 0:00:55]}  Rxg1+ {[%clk 0:00:51]} 24. Kxg1 {[%clk 0:00:55]}  Bxe2 {[%clk 0:00:52]} 25. Re1 {[%clk 0:00:55]}  Bxc4 {[%clk 0:00:39]} 26. Rxe5 {[%clk 0:00:51]}  Qxe5 {[%clk 0:00:36]} 27. Qxc4 {[%clk 0:00:48]}  Qe1+ {[%clk 0:00:30]} 28. Kh2 {[%clk 0:00:49]}  Qxf2 {[%clk 0:00:29]} 29. Qb5 {[%clk 0:00:41]}  Qh4+ {[%clk 0:00:20]} 30. Kg1 {[%clk 0:00:40]}  Qe1+ {[%clk 0:00:19]} 31. Kh2 {[%clk 0:00:40]}  Qe5+ {[%clk 0:00:20]} 32. Kg1 {[%clk 0:00:38]}  Qxd5 {[%clk 0:00:20]} 33. Qd7 {[%clk 0:00:39]}  a5 {[%clk 0:00:14]} 34. a4 {[%clk 0:00:38]}  Qe5 {[%clk 0:00:10]} 35. Qxb7 {[%clk 0:00:37]}  Qd4+ {[%clk 0:00:07]} 36. Kh1 {[%clk 0:00:34]}  Qxa4 {[%clk 0:00:07]} 37. Qc7 {[%clk 0:00:33]}  Qh4+ {[%clk 0:00:05]} 38. Kg1 {[%clk 0:00:33]}  Qe1+ {[%clk 0:00:04]} 39. Kh2 {[%clk 0:00:33]}  Qe5+ {[%clk 0:00:04]} 40. Kh1 {[%clk 0:00:33]}  a4 {[%clk 0:00:04]} 41. Qd7 {[%clk 0:00:31]}  Qe1+ {[%clk 0:00:02]} 42. Kh2 {[%clk 0:00:30]}  Qh4+ {[%clk 0:00:02]} 43. Kg1 {[%clk 0:00:31]}  Qd4+ {[%clk 0:00:02]} 44. Kh1 {[%clk 0:00:31]}  c4 {[%clk 0:00:01]} 45. Qxa4 {[%clk 0:00:31]}  Qxb2 {[%clk 0:00:00]} 46. Qxc4 {[%clk 0:00:32]} 1-0


[Site "https://www.chess.com"]

[Event "Titled Tuesday Blitz August 15 Early 2023"]
[White "Osinovsky, Stepan"]
[Black "Ordekalog"]
[WhiteFideId "4157354"]
[WhiteElo "2347"]
[BlackElo "2516"]
[Result "0-1"]
[Round "5"]
[TimeControl "180+1"]
[Date "2023.08.15"]
[WhiteClock "0:00:14"]
[BlackClock "0:01:48"]
[Board "121"]

1. e4 {[%clk 0:03:00]}  c5 {[%clk 0:02:58]} 2. Nf3 {[%clk 0:02:59]}  Nc6 {[%clk 0:02:57]} 3. Bb5 {[%clk 0:02:58]}  g6 {[%clk 0:02:56]} 4. O-O {[%clk 0:02:57]}  Bg7 {[%clk 0:02:55]} 5. Bxc6 {[%clk 0:02:55]}  dxc6 {[%clk 0:02:54]} 6. h3 {[%clk 0:02:55]}  e5 {[%clk 0:02:54]} 7. a3 {[%clk 0:02:50]}  a5 {[%clk 0:02:52]} 8. d3 {[%clk 0:02:32]}  Qe7 {[%clk 0:02:50]} 9. Bd2 {[%clk 0:02:28]}  Nf6 {[%clk 0:02:48]} 10. Bc3 {[%clk 0:02:28]}  Nd7 {[%clk 0:02:48]} 11. Nbd2 {[%clk 0:02:24]}  b5 {[%clk 0:02:45]} 12. b3 {[%clk 0:01:54]}  f6 {[%clk 0:02:44]} 13. a4 {[%clk 0:01:53]}  Qd8 {[%clk 0:02:38]} 14. axb5 {[%clk 0:01:46]}  cxb5 {[%clk 0:02:37]} 15. b4 {[%clk 0:01:46]}  cxb4 {[%clk 0:02:35]} 16. Bxb4 {[%clk 0:01:44]}  Bf8 {[%clk 0:02:34]} 17. Bxf8 {[%clk 0:01:39]}  Nxf8 {[%clk 0:02:33]} 18. d4 {[%clk 0:01:32]}  exd4 {[%clk 0:02:29]} 19. e5 {[%clk 0:01:27]}  Ne6 {[%clk 0:02:26]} 20. exf6 {[%clk 0:01:00]}  O-O {[%clk 0:02:22]} 21. Ne4 {[%clk 0:00:59]}  Bb7 {[%clk 0:02:22]} 22. Nfd2 {[%clk 0:00:25]}  a4 {[%clk 0:02:20]} 23. Re1 {[%clk 0:00:24]}  Qd5 {[%clk 0:02:14]} 24. Qg4 {[%clk 0:00:22]}  Rae8 {[%clk 0:02:12]} 25. Nf3 {[%clk 0:00:16]}  Bc6 {[%clk 0:02:06]} 26. Rad1 {[%clk 0:00:16]}  a3 {[%clk 0:01:54]} 27. Qh4 {[%clk 0:00:16]}  a2 {[%clk 0:01:48]} 28. Nfg5 {[%clk 0:00:13]}  Nxg5 {[%clk 0:01:48]} 29. Nxg5 {[%clk 0:00:14]}  Qxg2# {[%clk 0:01:48]} 0-1


[Site "https://www.chess.com"]

[Event "Titled Tuesday Blitz August 15 Early 2023"]
[White "Tikhonov, Viacheslav"]
[Black "Martinez, Shawn"]
[WhiteFideId "44196407"]
[BlackFideId "2039770"]
[WhiteElo "2512"]
[BlackElo "2341"]
[Result "1-0"]
[Round "5"]
[TimeControl "180+1"]
[Date "2023.08.15"]
[WhiteClock "0:00:11"]
[BlackClock "0:00:00"]
[Board "124"]

1. d4 {[%clk 0:03:00]}  g6 {[%clk 0:02:55]} 2. e4 {[%clk 0:03:00]}  Bg7 {[%clk 0:02:54]} 3. Nf3 {[%clk 0:02:57]}  a6 {[%clk 0:02:52]} 4. c4 {[%clk 0:02:56]}  b6 {[%clk 0:02:48]} 5. Nc3 {[%clk 0:02:55]}  Bb7 {[%clk 0:02:48]} 6. Bd3 {[%clk 0:02:53]}  h6 {[%clk 0:02:46]} 7. Be3 {[%clk 0:02:51]}  e6 {[%clk 0:02:46]} 8. Qe2 {[%clk 0:02:51]}  d6 {[%clk 0:02:45]} 9. h4 {[%clk 0:02:48]}  Ne7 {[%clk 0:02:40]} 10. O-O-O {[%clk 0:02:42]}  d5 {[%clk 0:02:28]} 11. cxd5 {[%clk 0:02:35]}  exd5 {[%clk 0:02:23]} 12. e5 {[%clk 0:02:35]}  Qd7 {[%clk 0:02:21]} 13. Qd2 {[%clk 0:02:21]}  Nbc6 {[%clk 0:02:16]} 14. Ne2 {[%clk 0:02:20]}  Nd8 {[%clk 0:02:11]} 15. Kb1 {[%clk 0:02:17]}  Ne6 {[%clk 0:02:08]} 16. Rc1 {[%clk 0:02:16]}  O-O-O {[%clk 0:01:57]} 17. Qc3 {[%clk 0:02:07]}  Kb8 {[%clk 0:01:55]} 18. Qa3 {[%clk 0:02:01]}  Ka7 {[%clk 0:01:30]} 19. Rc3 {[%clk 0:01:57]}  Rc8 {[%clk 0:01:19]} 20. Rhc1 {[%clk 0:01:51]}  Nf5 {[%clk 0:01:14]} 21. g4 {[%clk 0:01:44]}  Nxe3 {[%clk 0:01:12]} 22. fxe3 {[%clk 0:01:45]}  Bf8 {[%clk 0:01:09]} 23. Qb3 {[%clk 0:01:43]}  c5 {[%clk 0:01:08]} 24. Qd1 {[%clk 0:01:25]}  c4 {[%clk 0:01:02]} 25. Bc2 {[%clk 0:01:24]}  b5 {[%clk 0:01:02]} 26. e4 {[%clk 0:01:10]}  Be7 {[%clk 0:00:15]} 27. h5 {[%clk 0:01:01]}  Rb8 {[%clk 0:00:12]} 28. Re3 {[%clk 0:00:57]}  g5 {[%clk 0:00:12]} 29. Ng3 {[%clk 0:00:56]}  Rhc8 {[%clk 0:00:11]} 30. Nf5 {[%clk 0:00:56]}  Bf8 {[%clk 0:00:11]} 31. exd5 {[%clk 0:00:50]}  Bxd5 {[%clk 0:00:10]} 32. Be4 {[%clk 0:00:51]}  b4 {[%clk 0:00:10]} 33. Bxd5 {[%clk 0:00:47]}  Qxd5 {[%clk 0:00:11]} 34. Qa4 {[%clk 0:00:48]}  Rb5 {[%clk 0:00:11]} 35. Qc2 {[%clk 0:00:43]}  Rcb8 {[%clk 0:00:11]} 36. Qe4 {[%clk 0:00:42]}  b3 {[%clk 0:00:10]} 37. a3 {[%clk 0:00:39]}  Qd7 {[%clk 0:00:09]} 38. Rxc4 {[%clk 0:00:32]}  R8b7 {[%clk 0:00:07]} 39. Qc6 {[%clk 0:00:27]}  Qd8 {[%clk 0:00:07]} 40. Nd6 {[%clk 0:00:21]}  Bxd6 {[%clk 0:00:06]} 41. exd6 {[%clk 0:00:20]}  Nf4 {[%clk 0:00:03]} 42. Ne5 {[%clk 0:00:17]}  Qg8 {[%clk 0:00:02]} 43. d7 {[%clk 0:00:14]}  Qh7+ {[%clk 0:00:03]} 44. Qe4 {[%clk 0:00:15]}  Qxe4+ {[%clk 0:00:03]} 45. Rxe4 {[%clk 0:00:15]}  Rd5 {[%clk 0:00:03]} 46. Rc8 {[%clk 0:00:13]}  Ne6 {[%clk 0:00:03]} 47. Nxf7 {[%clk 0:00:13]}  Nxd4 {[%clk 0:00:02]} 48. Rxd4 {[%clk 0:00:11]}  Rxd4 {[%clk 0:00:02]} 49. d8=Q {[%clk 0:00:11]}  Rxd8 {[%clk 0:00:02]} 50. Nxd8 {[%clk 0:00:12]}  Re7 {[%clk 0:00:02]} 51. Nc6+ {[%clk 0:00:10]}  Kb7 {[%clk 0:00:00]} 52. Nxe7 {[%clk 0:00:11]} 1-0


[Site "https://www.chess.com"]

[Event "Titled Tuesday Blitz August 15 Early 2023"]
[White "Akylbek2021"]
[Black "FunnyDuck66"]
[WhiteElo "2337"]
[BlackElo "2509"]
[Result "1-0"]
[Round "5"]
[TimeControl "180+1"]
[Date "2023.08.15"]
[WhiteClock "0:01:16"]
[BlackClock "0:00:00"]
[Board "126"]

1. d4 {[%clk 0:02:50]}  Nf6 {[%clk 0:02:55]} 2. Nc3 {[%clk 0:02:50]}  d5 {[%clk 0:02:53]} 3. Bf4 {[%clk 0:02:50]}  c6 {[%clk 0:02:50]} 4. e3 {[%clk 0:02:50]}  Bf5 {[%clk 0:02:46]} 5. f3 {[%clk 0:02:50]}  e6 {[%clk 0:02:43]} 6. g4 {[%clk 0:02:51]}  Bg6 {[%clk 0:02:43]} 7. h4 {[%clk 0:02:51]}  h5 {[%clk 0:02:42]} 8. g5 {[%clk 0:02:52]}  Nfd7 {[%clk 0:02:41]} 9. Bd3 {[%clk 0:02:52]}  Bxd3 {[%clk 0:02:41]} 10. Qxd3 {[%clk 0:02:53]}  g6 {[%clk 0:02:41]} 11. e4 {[%clk 0:02:53]}  Bg7 {[%clk 0:02:35]} 12. O-O-O {[%clk 0:02:53]}  Nb6 {[%clk 0:02:29]} 13. Nge2 {[%clk 0:02:50]}  Nc4 {[%clk 0:02:26]} 14. exd5 {[%clk 0:02:48]}  cxd5 {[%clk 0:02:26]} 15. Nb5 {[%clk 0:02:45]}  O-O {[%clk 0:02:22]} 16. b3 {[%clk 0:02:37]}  Nb6 {[%clk 0:01:24]} 17. Nc7 {[%clk 0:02:36]}  Nc6 {[%clk 0:01:16]} 18. Nxa8 {[%clk 0:02:36]}  Qxa8 {[%clk 0:01:14]} 19. c3 {[%clk 0:02:34]}  a5 {[%clk 0:01:10]} 20. a4 {[%clk 0:02:32]}  Qc8 {[%clk 0:01:06]} 21. Kb1 {[%clk 0:02:28]}  Qd7 {[%clk 0:01:03]} 22. Qb5 {[%clk 0:02:25]}  Nc8 {[%clk 0:01:00]} 23. Nc1 {[%clk 0:02:20]}  N8a7 {[%clk 0:00:46]} 24. Qb6 {[%clk 0:02:20]}  Rc8 {[%clk 0:00:37]} 25. Nd3 {[%clk 0:02:16]}  Qe7 {[%clk 0:00:30]} 26. Nc5 {[%clk 0:02:12]}  e5 {[%clk 0:00:25]} 27. Rhe1 {[%clk 0:02:09]}  Qd6 {[%clk 0:00:08]} 28. dxe5 {[%clk 0:01:57]}  Qe7 {[%clk 0:00:09]} 29. Nd3 {[%clk 0:01:46]}  Rd8 {[%clk 0:00:05]} 30. Qc5 {[%clk 0:01:44]}  Qe6 {[%clk 0:00:04]} 31. Bc1 {[%clk 0:01:41]}  Rc8 {[%clk 0:00:04]} 32. Nf4 {[%clk 0:01:40]}  Qf5+ {[%clk 0:00:04]} 33. Kb2 {[%clk 0:01:36]}  Bxe5 {[%clk 0:00:03]} 34. Nxd5 {[%clk 0:01:32]}  Nb4 {[%clk 0:00:04]} 35. Ne7+ {[%clk 0:01:32]}  Kh8 {[%clk 0:00:03]} 36. Qxc8+ {[%clk 0:01:16]}  Qxc8 {[%clk 0:00:02]} 37. Nxc8 {[%clk 0:01:16]}  Bxc3+ {[%clk 0:00:02]} 38. Kxc3 {[%clk 0:01:16]}  Nxc8 {[%clk 0:00:03]} 39. Rd8+ {[%clk 0:01:16]}  Kg7 {[%clk 0:00:03]} 40. Rxc8 {[%clk 0:01:17]}  Nd5+ {[%clk 0:00:02]} 41. Kd4 {[%clk 0:01:17]}  Nb6 {[%clk 0:00:00]} 42. Rc7 {[%clk 0:01:16]} 1-0


[Site "https://www.chess.com"]

[Event "Titled Tuesday Blitz August 15 Early 2023"]
[White "Mammadzada, Gunay"]
[Black "Skaric, Djuro"]
[WhiteFideId "13403729"]
[BlackFideId "934569"]
[WhiteElo "2509"]
[BlackElo "2335"]
[Result "1-0"]
[Round "5"]
[TimeControl "180+1"]
[Date "2023.08.15"]
[WhiteClock "0:01:31"]
[BlackClock "0:01:26"]
[Board "127"]

1. e4 {[%clk 0:02:41]}  d6 {[%clk 0:03:00]} 2. d4 {[%clk 0:02:38]}  g6 {[%clk 0:03:01]} 3. Nc3 {[%clk 0:02:38]}  Bg7 {[%clk 0:03:02]} 4. Nf3 {[%clk 0:02:38]}  Nf6 {[%clk 0:03:03]} 5. Be2 {[%clk 0:02:36]}  O-O {[%clk 0:03:03]} 6. O-O {[%clk 0:02:37]}  Nc6 {[%clk 0:03:03]} 7. d5 {[%clk 0:02:34]}  Ne5 {[%clk 0:03:02]} 8. Nd4 {[%clk 0:02:34]}  c5 {[%clk 0:03:00]} 9. dxc6 {[%clk 0:02:34]}  Nxc6 {[%clk 0:03:00]} 10. Be3 {[%clk 0:02:33]}  h6 {[%clk 0:02:58]} 11. Qd2 {[%clk 0:02:32]}  Kh7 {[%clk 0:02:58]} 12. f4 {[%clk 0:02:30]}  a6 {[%clk 0:02:33]} 13. h3 {[%clk 0:02:18]}  Bd7 {[%clk 0:02:28]} 14. Rad1 {[%clk 0:02:14]}  Rc8 {[%clk 0:02:23]} 15. Nb3 {[%clk 0:02:10]}  b5 {[%clk 0:02:22]} 16. a3 {[%clk 0:02:10]}  b4 {[%clk 0:02:12]} 17. axb4 {[%clk 0:02:09]}  Nxb4 {[%clk 0:02:12]} 18. e5 {[%clk 0:02:06]}  Nh5 {[%clk 0:02:00]} 19. Bxh5 {[%clk 0:02:05]}  gxh5 {[%clk 0:02:00]} 20. exd6 {[%clk 0:01:57]}  exd6 {[%clk 0:01:59]} 21. Bd4 {[%clk 0:01:51]}  Rg8 {[%clk 0:01:52]} 22. Bxg7 {[%clk 0:01:48]}  Rxg7 {[%clk 0:01:51]} 23. Qxd6 {[%clk 0:01:41]}  Bxh3 {[%clk 0:01:50]} 24. Qxd8 {[%clk 0:01:40]}  Rxg2+ {[%clk 0:01:33]} 25. Kh1 {[%clk 0:01:39]}  Rxd8 {[%clk 0:01:34]} 26. Rxd8 {[%clk 0:01:39]}  Nxc2 {[%clk 0:01:26]} 27. Rf3 {[%clk 0:01:31]} 1-0


[Site "https://www.chess.com"]